[Event "*** SCC Grand Prix: Titled Tuesday Blitz"]
[Site "Chess.com"]
[Date "2020.08.11"]
[Round "4"]
[White "Lupul_Cenusiu"]
[Black "Supernotar"]
[Result "0-1"]
[WhiteElo "2500"]
[BlackElo "2700"]
[TimeControl "180+1"]
[EndTime "10:40:07 PDT"]
[Termination "Supernotar won on time"]

1. d4 {[%clk 0:03:00.9]} 1... d5 {[%clk 0:02:59.5]} 2. Nf3 {[%clk 0:02:59.9]}
2... Nf6 {[%clk 0:02:59.1]} 3. c4 {[%clk 0:03:00]} 3... dxc4 {[%clk 0:02:59]} 4.
e3 {[%clk 0:02:57.9]} 4... e6 {[%clk 0:02:58.7]} 5. Bxc4 {[%clk 0:02:57.1]} 5...
a6 {[%clk 0:02:58.9]} 6. a4 {[%clk 0:02:55.7]} 6... c5 {[%clk 0:02:58.3]} 7. O-O
{[%clk 0:02:56.3]} 7... Nc6 {[%clk 0:02:58.3]} 8. Qe2 {[%clk 0:02:55.3]} 8...
cxd4 {[%clk 0:02:58]} 9. Rd1 {[%clk 0:02:54.8]} 9... Be7 {[%clk 0:02:57.9]} 10.
exd4 {[%clk 0:02:54.5]} 10... O-O {[%clk 0:02:57.5]} 11. Nc3 {[%clk 0:02:51.2]}
11... Nb4 {[%clk 0:02:57.4]} 12. Ne5 {[%clk 0:02:45]} 12... Bd7 {[%clk
0:02:56.1]} 13. Bg5 {[%clk 0:02:35.9]} 13... Bc6 {[%clk 0:02:52.6]} 14. Rac1
{[%clk 0:02:29.9]} 14... Rc8 {[%clk 0:02:43.7]} 15. h4 {[%clk 0:02:24.8]} 15...
Bd5 {[%clk 0:02:42.3]} 16. Nxd5 {[%clk 0:02:22.2]} 16... Nfxd5 {[%clk
0:02:38.4]} 17. Bd2 {[%clk 0:02:17]} 17... Bxh4 {[%clk 0:02:32.5]} 18. g3 {[%clk
0:02:16.5]} 18... Bg5 {[%clk 0:02:30]} 19. f4 {[%clk 0:02:15.3]} 19... Bf6
{[%clk 0:02:29.5]} 20. Kg2 {[%clk 0:02:12.8]} 20... g6 {[%clk 0:02:25.9]} 21.
Rh1 {[%clk 0:02:03.2]} 21... Nc6 {[%clk 0:02:16.2]} 22. Bc3 {[%clk 0:01:48.9]}
22... Nce7 {[%clk 0:02:06.9]} 23. Bd3 {[%clk 0:01:42.9]} 23... Nf5 {[%clk
0:01:39.7]} 24. Bxf5 {[%clk 0:01:13.3]} 24... exf5 {[%clk 0:01:37.2]} 25. Qf3
{[%clk 0:01:07.6]} 25... h5 {[%clk 0:01:32.5]} 26. Bd2 {[%clk 0:00:54.4]} 26...
Qd6 {[%clk 0:01:27.7]} 27. Qb3 {[%clk 0:00:50.1]} 27... b6 {[%clk 0:01:19.3]}
28. Rhe1 {[%clk 0:00:45.6]} 28... Rfd8 {[%clk 0:01:09.8]} 29. Nf3 {[%clk
0:00:30]} 29... Kg7 {[%clk 0:01:06.6]} 30. Qd3 {[%clk 0:00:24.9]} 30... a5
{[%clk 0:01:00]} 31. Qb5 {[%clk 0:00:22.8]} 31... Rxc1 {[%clk 0:00:47.8]} 32.
Rxc1 {[%clk 0:00:21]} 32... Rd7 {[%clk 0:00:45.9]} 33. Rc6 {[%clk 0:00:18.6]}
33... Qe7 {[%clk 0:00:41.9]} 34. Ne5 {[%clk 0:00:18.4]} 34... Rd6 {[%clk
0:00:37.3]} 35. Qc4 {[%clk 0:00:12.4]} 35... Rxc6 {[%clk 0:00:26.5]} 36. Qxc6
{[%clk 0:00:11.7]} 36... Qd8 {[%clk 0:00:26.2]} 37. b3 {[%clk 0:00:08.9]} 37...
Ne7 {[%clk 0:00:23]} 38. Qc4 {[%clk 0:00:07.1]} 38... Qd5+ {[%clk 0:00:22.5]}
39. Kf2 {[%clk 0:00:07.3]} 39... Qe6 {[%clk 0:00:19.8]} 40. Be3 {[%clk
0:00:06.3]} 40... Nd5 {[%clk 0:00:19.5]} 41. Bd2 {[%clk 0:00:06.5]} 41... Kg8
{[%clk 0:00:17.7]} 42. Qb5 {[%clk 0:00:04.8]} 42... Kg7 {[%clk 0:00:16.9]} 43.
Qc4 {[%clk 0:00:04.9]} 43... Be7 {[%clk 0:00:15.7]} 44. Be1 {[%clk 0:00:03.5]}
44... f6 {[%clk 0:00:14.5]} 45. Nc6 {[%clk 0:00:03.3]} 45... Qe3+ {[%clk
0:00:14.3]} 46. Kf1 {[%clk 0:00:03.5]} 46... Qf3+ {[%clk 0:00:13.5]} 47. Kg1
{[%clk 0:00:03.7]} 47... Ne3 {[%clk 0:00:13.7]} 0-1

[Event "*** SCC Grand Prix: Titled Tuesday Blitz"]
[Site "Chess.com"]
[Date "2020.08.11"]
[Round "4"]
[White "wannabe2700"]
[Black "evgenyermolaev"]
[Result "1-0"]
[WhiteElo "2666"]
[BlackElo "2478"]
[TimeControl "180+1"]
[EndTime "10:40:07 PDT"]
[Termination "wannabe2700 won on time"]

1. e4 {[%clk 0:03:00.9]} 1... d5 {[%clk 0:02:58.5]} 2. exd5 {[%clk 0:03:01]}
2... Qxd5 {[%clk 0:02:57.5]} 3. Nc3 {[%clk 0:03:01.1]} 3... Qe6+ {[%clk
0:02:57.3]} 4. Be2 {[%clk 0:03:00.1]} 4... Qg6 {[%clk 0:02:56.4]} 5. Nf3 {[%clk
0:02:54.1]} 5... Qxg2 {[%clk 0:02:53.3]} 6. Rg1 {[%clk 0:02:54.4]} 6... Qh3
{[%clk 0:02:53]} 7. Rg3 {[%clk 0:02:14.7]} 7... Qe6 {[%clk 0:02:51.9]} 8. d4
{[%clk 0:02:11.5]} 8... Nf6 {[%clk 0:02:46.2]} 9. d5 {[%clk 0:02:04.1]} 9... Qd7
{[%clk 0:02:28]} 10. Ne5 {[%clk 0:01:59.5]} 10... Qf5 {[%clk 0:02:15.7]} 11. f4
{[%clk 0:01:55.5]} 11... g6 {[%clk 0:01:55.6]} 12. Nb5 {[%clk 0:01:49.1]} 12...
Na6 {[%clk 0:01:43.9]} 13. Kf1 {[%clk 0:01:29.1]} 13... Nh5 {[%clk 0:01:12.5]}
14. Rf3 {[%clk 0:01:24.6]} 14... Bg7 {[%clk 0:01:06.1]} 15. Nd4 {[%clk
0:01:16.3]} 15... Qf6 {[%clk 0:00:43.2]} 16. Bb5+ {[%clk 0:01:14.8]} 16... c6
{[%clk 0:00:34.4]} 17. dxc6 {[%clk 0:01:11.9]} 17... O-O {[%clk 0:00:34.6]} 18.
Be3 {[%clk 0:00:58.5]} 18... Nc7 {[%clk 0:00:26]} 19. a4 {[%clk 0:00:48]} 19...
Nd5 {[%clk 0:00:19.8]} 20. Qd2 {[%clk 0:00:38.8]} 20... Nxe3+ {[%clk 0:00:13.3]}
21. Qxe3 {[%clk 0:00:39.7]} 21... Nxf4 {[%clk 0:00:13.8]} 22. Rxf4 {[%clk
0:00:37.4]} 22... Qxe5 {[%clk 0:00:14]} 23. Re4 {[%clk 0:00:36.2]} 23... Qxh2
{[%clk 0:00:10.6]} 24. Rd1 {[%clk 0:00:26.3]} 24... bxc6 {[%clk 0:00:04.2]} 25.
Nxc6 {[%clk 0:00:21.3]} 25... Bh3+ {[%clk 0:00:03.1]} 26. Ke1 {[%clk 0:00:21.3]}
26... e6 {[%clk 0:00:03.6]} 27. Qf2 {[%clk 0:00:15.3]} 27... Qxf2+ {[%clk
0:00:03.2]} 28. Kxf2 {[%clk 0:00:16.2]} 28... Bf5 {[%clk 0:00:03.7]} 29. Rc4
{[%clk 0:00:12.9]} 29... a6 {[%clk 0:00:03.3]} 30. b4 {[%clk 0:00:06.8]} 30...
axb5 {[%clk 0:00:03.1]} 31. axb5 {[%clk 0:00:07.7]} 31... Rab8 {[%clk
0:00:01.1]} 32. Nxb8 {[%clk 0:00:05]} 32... Rxb8 {[%clk 0:00:02]} 33. Rc5 {[%clk
0:00:05.2]} 33... Bf8 {[%clk 0:00:02.2]} 34. c4 {[%clk 0:00:04.2]} 34... Bxc5+
{[%clk 0:00:02.3]} 35. bxc5 {[%clk 0:00:05.1]} 35... Be4 {[%clk 0:00:02.9]} 36.
Ke3 {[%clk 0:00:04.3]} 36... f5 {[%clk 0:00:02.9]} 37. Kf4 {[%clk 0:00:04.3]}
37... Kf7 {[%clk 0:00:03]} 38. Ke5 {[%clk 0:00:03.8]} 38... Ke7 {[%clk
0:00:03.6]} 39. Ra1 {[%clk 0:00:02.4]} 39... Rc8 {[%clk 0:00:03.5]} 40. Ra7+
{[%clk 0:00:01.8]} 40... Kf8 {[%clk 0:00:03]} 41. Kf6 {[%clk 0:00:01.1]} 1-0

[Event "*** SCC Grand Prix: Titled Tuesday Blitz"]
[Site "Chess.com"]
[Date "2020.08.11"]
[Round "4"]
[White "M1711"]
[Black "narutosmith"]
[Result "1-0"]
[WhiteElo "2451"]
[BlackElo "2250"]
[TimeControl "180+1"]
[EndTime "10:40:11 PDT"]
[Termination "M1711 won on time"]

1. e4 {[%clk 0:02:28.7]} 1... c5 {[%clk 0:02:56]} 2. Nf3 {[%clk 0:02:27.5]} 2...
Nc6 {[%clk 0:02:54.1]} 3. d4 {[%clk 0:02:26.3]} 3... cxd4 {[%clk 0:02:53.3]} 4.
Nxd4 {[%clk 0:02:27.2]} 4... e6 {[%clk 0:02:53.5]} 5. Nc3 {[%clk 0:02:26.1]}
5... Qc7 {[%clk 0:02:51.6]} 6. g3 {[%clk 0:02:19.6]} 6... a6 {[%clk 0:02:49.7]}
7. Bg2 {[%clk 0:02:17.6]} 7... Nf6 {[%clk 0:02:50.3]} 8. O-O {[%clk 0:02:16.4]}
8... h5 {[%clk 0:02:50.9]} 9. Re1 {[%clk 0:02:14]} 9... Nxd4 {[%clk 0:02:45.1]}
10. Qxd4 {[%clk 0:02:13.4]} 10... Bc5 {[%clk 0:02:44.2]} 11. Qd1 {[%clk
0:01:43.4]} 11... Ng4 {[%clk 0:02:06]} 12. Re2 {[%clk 0:01:38.3]} 12... h4
{[%clk 0:01:55.5]} 13. Bf4 {[%clk 0:00:53.7]} 13... Qb6 {[%clk 0:01:37.8]} 14.
Qd2 {[%clk 0:00:41.8]} 14... hxg3 {[%clk 0:00:50.9]} 15. hxg3 {[%clk 0:00:42.7]}
15... O-O {[%clk 0:00:36.4]} 16. Na4 {[%clk 0:00:39.8]} 16... Qb5 {[%clk
0:00:22.2]} 17. Nxc5 {[%clk 0:00:39.1]} 17... Qxc5 {[%clk 0:00:19.5]} 18. Bd6
{[%clk 0:00:32.4]} 18... Qh5 {[%clk 0:00:19.5]} 19. Bxf8 {[%clk 0:00:32.5]}
19... Qh2+ {[%clk 0:00:18.5]} 20. Kf1 {[%clk 0:00:32.9]} 20... Kxf8 {[%clk
0:00:18]} 21. Qg5 {[%clk 0:00:31.3]} 21... Nf6 {[%clk 0:00:16.2]} 22. e5 {[%clk
0:00:30.1]} 22... Ne8 {[%clk 0:00:16.5]} 23. Re4 {[%clk 0:00:25]} 23... Qh7
{[%clk 0:00:15.1]} 24. Rh4 {[%clk 0:00:24.6]} 24... Qg8 {[%clk 0:00:13.2]} 25.
Ke2 {[%clk 0:00:21.3]} 25... f6 {[%clk 0:00:13.2]} 26. Qf4 {[%clk 0:00:12.4]}
26... Qf7 {[%clk 0:00:12.7]} 27. exf6 {[%clk 0:00:11.1]} 27... Nxf6 {[%clk
0:00:11.8]} 28. Rah1 {[%clk 0:00:10.2]} 28... Ke7 {[%clk 0:00:11.1]} 29. Qb4+
{[%clk 0:00:09.8]} 29... d6 {[%clk 0:00:10.8]} 30. Rd4 {[%clk 0:00:10.5]} 30...
Ne8 {[%clk 0:00:09.7]} 31. Rhh4 {[%clk 0:00:07.1]} 31... Qf6 {[%clk 0:00:09.2]}
32. Rhf4 {[%clk 0:00:07]} 32... Qe5+ {[%clk 0:00:09.2]} 33. Rde4 {[%clk
0:00:06.3]} 33... Qc5 {[%clk 0:00:09.2]} 34. Qxc5 {[%clk 0:00:04.9]} 34... dxc5
{[%clk 0:00:09.5]} 35. Re5 {[%clk 0:00:04.9]} 35... Rb8 {[%clk 0:00:08]} 36.
Rxc5 {[%clk 0:00:04.9]} 36... Nf6 {[%clk 0:00:08]} 37. Rg5 {[%clk 0:00:03.9]}
37... Kf7 {[%clk 0:00:07.3]} 38. Bh3 {[%clk 0:00:04]} 38... Bd7 {[%clk 0:00:07]}
39. Re5 {[%clk 0:00:03.9]} 39... Rd8 {[%clk 0:00:06.2]} 40. Rd4 {[%clk
0:00:04.2]} 40... Bb5+ {[%clk 0:00:04.9]} 41. Ke3 {[%clk 0:00:04.8]} 41... Rc8
{[%clk 0:00:04.1]} 42. c3 {[%clk 0:00:04.8]} 42... Re8 {[%clk 0:00:03.6]} 43. a4
{[%clk 0:00:04.1]} 43... Bc6 {[%clk 0:00:03.2]} 44. Bf1 {[%clk 0:00:04.2]} 44...
Nd5+ {[%clk 0:00:02.8]} 45. Kd2 {[%clk 0:00:03.9]} 45... Re7 {[%clk 0:00:02.2]}
46. Bc4 {[%clk 0:00:03.5]} 46... Nb6 {[%clk 0:00:01.2]} 47. Bb3 {[%clk
0:00:03.6]} 1-0

[Event "*** SCC Grand Prix: Titled Tuesday Blitz"]
[Site "Chess.com"]
[Date "2020.08.11"]
[Round "4"]
[White "novocane"]
[Black "Oligan22"]
[Result "1-0"]
[WhiteElo "2279"]
[BlackElo "2439"]
[TimeControl "180+1"]
[EndTime "10:40:12 PDT"]
[Termination "novocane won on time"]

1. d4 {[%clk 0:03:00.6]} 1... Nf6 {[%clk 0:02:59.8]} 2. c4 {[%clk 0:03:00.6]}
2... e6 {[%clk 0:03:00.1]} 3. Nc3 {[%clk 0:03:00.6]} 3... Bb4 {[%clk 0:02:59.8]}
4. e3 {[%clk 0:03:01.2]} 4... O-O {[%clk 0:02:58]} 5. Ne2 {[%clk 0:03:01.4]}
5... Re8 {[%clk 0:02:56.1]} 6. a3 {[%clk 0:03:01.1]} 6... Bf8 {[%clk 0:02:56.2]}
7. e4 {[%clk 0:03:00.9]} 7... d6 {[%clk 0:02:35.2]} 8. f3 {[%clk 0:02:53.7]}
8... e5 {[%clk 0:02:30.8]} 9. d5 {[%clk 0:02:50.7]} 9... a5 {[%clk 0:02:28.8]}
10. Be3 {[%clk 0:02:49.2]} 10... Nh5 {[%clk 0:02:22.3]} 11. Qd2 {[%clk
0:02:43.7]} 11... g6 {[%clk 0:01:51.1]} 12. g4 {[%clk 0:02:37.7]} 12... Nf6
{[%clk 0:01:49.4]} 13. h4 {[%clk 0:02:35.2]} 13... h5 {[%clk 0:01:47.9]} 14.
O-O-O {[%clk 0:02:05.4]} 14... hxg4 {[%clk 0:01:36.8]} 15. h5 {[%clk 0:02:04.8]}
15... Nxh5 {[%clk 0:01:30.3]} 16. fxg4 {[%clk 0:01:54.3]} 16... Bxg4 {[%clk
0:01:30.3]} 17. Bh3 {[%clk 0:01:54.3]} 17... Bxe2 {[%clk 0:01:13]} 18. Nxe2
{[%clk 0:01:42.3]} 18... Nd7 {[%clk 0:01:13.9]} 19. Bxd7 {[%clk 0:01:04.2]}
19... Qxd7 {[%clk 0:01:14.8]} 20. Rdg1 {[%clk 0:01:04.4]} 20... Nf4 {[%clk
0:00:53.4]} 21. Nxf4 {[%clk 0:00:53.8]} 21... exf4 {[%clk 0:00:54.3]} 22. Qh2
{[%clk 0:00:39.5]} 22... Bg7 {[%clk 0:00:50]} 23. Qh7+ {[%clk 0:00:35.5]} 23...
Kf8 {[%clk 0:00:49.7]} 24. Bxf4 {[%clk 0:00:35.6]} 24... Rxe4 {[%clk 0:00:24.7]}
25. Bh6 {[%clk 0:00:32.5]} 25... Rxc4+ {[%clk 0:00:24.9]} 26. Kb1 {[%clk
0:00:28.5]} 26... Qf5+ {[%clk 0:00:25.1]} 27. Ka1 {[%clk 0:00:29]} 27... Qe5
{[%clk 0:00:22.7]} 28. Qh8+ {[%clk 0:00:25.4]} 28... Ke7 {[%clk 0:00:22.6]} 29.
Qxg7 {[%clk 0:00:25.1]} 29... Qxg7 {[%clk 0:00:19.3]} 30. Bxg7 {[%clk 0:00:26]}
30... Kd7 {[%clk 0:00:12.9]} 31. Re1 {[%clk 0:00:23.2]} 31... Re8 {[%clk
0:00:12.4]} 32. Bf6 {[%clk 0:00:23]} 32... Rce4 {[%clk 0:00:09.9]} 33. Rxe4
{[%clk 0:00:21.3]} 33... Rxe4 {[%clk 0:00:10.8]} 34. Rh7 {[%clk 0:00:22]} 34...
c6 {[%clk 0:00:10.2]} 35. Rxf7+ {[%clk 0:00:19.2]} 35... Kc8 {[%clk 0:00:10.8]}
36. dxc6 {[%clk 0:00:18.4]} 36... bxc6 {[%clk 0:00:11.7]} 37. Rg7 {[%clk
0:00:17.2]} 37... Rg4 {[%clk 0:00:11.3]} 38. Ra7 {[%clk 0:00:15.8]} 38... a4
{[%clk 0:00:10.7]} 39. Be7 {[%clk 0:00:15.3]} 39... Kb8 {[%clk 0:00:07.6]} 40.
Ra5 {[%clk 0:00:13.8]} 40... d5 {[%clk 0:00:06.6]} 41. Bb4 {[%clk 0:00:14.1]}
41... g5 {[%clk 0:00:04.8]} 42. Rxa4 {[%clk 0:00:14.2]} 42... Kb7 {[%clk
0:00:04.3]} 43. Ra5 {[%clk 0:00:14]} 43... Re4 {[%clk 0:00:02.6]} 44. Bc5 {[%clk
0:00:14.2]} 44... Rc4 {[%clk 0:00:01.5]} 45. b4 {[%clk 0:00:13]} 1-0

[Event "*** SCC Grand Prix: Titled Tuesday Blitz"]
[Site "Chess.com"]
[Date "2020.08.11"]
[Round "4"]
[White "zala02"]
[Black "QueenOfTactics90"]
[Result "0-1"]
[WhiteElo "2196"]
[BlackElo "1953"]
[TimeControl "180+1"]
[EndTime "10:40:12 PDT"]
[Termination "QueenOfTactics90 won by checkmate"]

1. d4 {[%clk 0:03:00.9]} 1... Nf6 {[%clk 0:02:56.1]} 2. c4 {[%clk 0:02:59.1]}
2... e6 {[%clk 0:02:56.4]} 3. Nc3 {[%clk 0:02:58.1]} 3... d5 {[%clk 0:02:55.4]}
4. cxd5 {[%clk 0:02:55.8]} 4... exd5 {[%clk 0:02:53.7]} 5. Bg5 {[%clk
0:02:53.8]} 5... Be7 {[%clk 0:02:53.5]} 6. e3 {[%clk 0:02:47.4]} 6... Bf5 {[%clk
0:02:52.2]} 7. Qb3 {[%clk 0:02:26.6]} 7... Nbd7 {[%clk 0:01:55]} 8. Nge2 {[%clk
0:00:55.2]} 8... b6 {[%clk 0:01:27.3]} 9. Ng3 {[%clk 0:00:53.9]} 9... Bg6 {[%clk
0:01:25.2]} 10. Bxf6 {[%clk 0:00:49.6]} 10... Nxf6 {[%clk 0:01:22.6]} 11. Bb5+
{[%clk 0:00:49.3]} 11... Kf8 {[%clk 0:01:21.7]} 12. Bc6 {[%clk 0:00:46.9]} 12...
Rb8 {[%clk 0:01:17.7]} 13. Nxd5 {[%clk 0:00:38.7]} 13... Nxd5 {[%clk 0:01:12]}
14. Qxd5 {[%clk 0:00:39.2]} 14... Qxd5 {[%clk 0:01:00]} 15. Bxd5 {[%clk
0:00:40.1]} 15... Bb4+ {[%clk 0:00:54.7]} 16. Ke2 {[%clk 0:00:39.8]} 16... Rd8
{[%clk 0:00:54.7]} 17. Bc4 {[%clk 0:00:32.8]} 17... c6 {[%clk 0:00:52.5]} 18. a3
{[%clk 0:00:32.1]} 18... Bd6 {[%clk 0:00:51.6]} 19. b4 {[%clk 0:00:31.6]} 19...
h5 {[%clk 0:00:51.3]} 20. Rhd1 {[%clk 0:00:19.9]} 20... h4 {[%clk 0:00:50.2]}
21. Nf1 {[%clk 0:00:20]} 21... Ke7 {[%clk 0:00:49.7]} 22. f3 {[%clk 0:00:18.8]}
22... Rhe8 {[%clk 0:00:47.9]} 23. h3 {[%clk 0:00:16.4]} 23... Kf8 {[%clk
0:00:47.1]} 24. e4 {[%clk 0:00:14.3]} 24... f6 {[%clk 0:00:44.1]} 25. Kf2 {[%clk
0:00:14.3]} 25... Bf4 {[%clk 0:00:41.8]} 26. Kg1 {[%clk 0:00:13.4]} 26... Re7
{[%clk 0:00:37.4]} 27. Ra2 {[%clk 0:00:12]} 27... Red7 {[%clk 0:00:36.7]} 28. d5
{[%clk 0:00:12.4]} 28... cxd5 {[%clk 0:00:35.8]} 29. Rxd5 {[%clk 0:00:13.1]}
29... Rxd5 {[%clk 0:00:32.1]} 30. Bxd5 {[%clk 0:00:14]} 30... Rc8 {[%clk
0:00:31.7]} 31. Ra1 {[%clk 0:00:06]} 31... Rc2 {[%clk 0:00:29.6]} 32. a4 {[%clk
0:00:04.2]} 32... Be5 {[%clk 0:00:29.1]} 33. Rb1 {[%clk 0:00:03.2]} 33... Be8
{[%clk 0:00:29]} 34. a5 {[%clk 0:00:03.3]} 34... Bb5 {[%clk 0:00:28.3]} 35. Kh1
{[%clk 0:00:02.6]} 35... Bd3 {[%clk 0:00:25.1]} 36. Ne3 {[%clk 0:00:02.6]} 36...
Re2 {[%clk 0:00:23]} 37. Rc1 {[%clk 0:00:03.1]} 37... Rxe3 {[%clk 0:00:21]} 38.
Rc8+ {[%clk 0:00:03.8]} 38... Ke7 {[%clk 0:00:21.4]} 39. Rc1 {[%clk 0:00:03.9]}
39... Bb2 {[%clk 0:00:20.1]} 40. axb6 {[%clk 0:00:04]} 40... Bxc1 {[%clk
0:00:19.4]} 41. bxa7 {[%clk 0:00:04.1]} 41... Re1+ {[%clk 0:00:19.6]} 42. Kh2
{[%clk 0:00:03.2]} 42... Bf4+ {[%clk 0:00:19.6]} 43. g3 {[%clk 0:00:03.2]} 43...
Bxg3+ {[%clk 0:00:19.9]} 44. Kg2 {[%clk 0:00:03.3]} 44... Bf1+ {[%clk
0:00:19.3]} 45. Kg1 {[%clk 0:00:03.2]} 45... Bxh3# {[%clk 0:00:19.1]} 0-1

[Event "*** SCC Grand Prix: Titled Tuesday Blitz"]
[Site "Chess.com"]
[Date "2020.08.11"]
[Round "4"]
[White "ferch1ni"]
[Black "mbachez"]
[Result "0-1"]
[WhiteElo "2274"]
[BlackElo "2466"]
[TimeControl "180+1"]
[EndTime "10:40:17 PDT"]
[Termination "mbachez won by checkmate"]

1. e4 {[%clk 0:03:00.9]} 1... c6 {[%clk 0:02:53.3]} 2. Nf3 {[%clk 0:02:48]} 2...
d5 {[%clk 0:02:51.4]} 3. Nc3 {[%clk 0:02:47]} 3... Nf6 {[%clk 0:02:51.5]} 4. d3
{[%clk 0:02:35]} 4... dxe4 {[%clk 0:02:43.4]} 5. dxe4 {[%clk 0:02:34.5]} 5...
Qxd1+ {[%clk 0:02:44.3]} 6. Kxd1 {[%clk 0:02:35.4]} 6... Bg4 {[%clk 0:02:43.4]}
7. Bf4 {[%clk 0:02:30.7]} 7... Nbd7 {[%clk 0:02:42.2]} 8. Be2 {[%clk 0:02:22.7]}
8... Bxf3 {[%clk 0:02:36.8]} 9. gxf3 {[%clk 0:02:16.5]} 9... e5 {[%clk
0:02:36.8]} 10. Be3 {[%clk 0:02:16.8]} 10... Bc5 {[%clk 0:02:34.5]} 11. f4
{[%clk 0:02:14.8]} 11... exf4 {[%clk 0:02:26.5]} 12. Bxf4 {[%clk 0:02:13.7]}
12... Bxf2 {[%clk 0:02:26.4]} 13. e5 {[%clk 0:02:13.9]} 13... Ng8 {[%clk
0:02:24.1]} 14. Ne4 {[%clk 0:02:07.8]} 14... Bd4 {[%clk 0:02:23.9]} 15. Nd6+
{[%clk 0:02:03.9]} 15... Kf8 {[%clk 0:02:23.2]} 16. Rf1 {[%clk 0:01:42.8]} 16...
Bxe5 {[%clk 0:02:17.5]} 17. Nxf7 {[%clk 0:01:40.6]} 17... Kxf7 {[%clk
0:02:15.8]} 18. Bxe5+ {[%clk 0:01:40.8]} 18... Ngf6 {[%clk 0:02:15.6]} 19. Bc4+
{[%clk 0:01:41.4]} 19... Ke7 {[%clk 0:02:15.8]} 20. Bc3 {[%clk 0:01:35]} 20...
Rad8 {[%clk 0:02:12.2]} 21. Ke2 {[%clk 0:01:34.9]} 21... Rhe8 {[%clk 0:02:05.9]}
22. Rae1 {[%clk 0:01:31.8]} 22... Kd6+ {[%clk 0:02:04.8]} 23. Kf3 {[%clk
0:01:30.4]} 23... Ne5+ {[%clk 0:02:03.6]} 24. Bxe5+ {[%clk 0:01:30.2]} 24...
Rxe5 {[%clk 0:02:03.5]} 25. Rxe5 {[%clk 0:01:25.6]} 25... Kxe5 {[%clk
0:02:04.4]} 26. Re1+ {[%clk 0:01:25.2]} 26... Kd6 {[%clk 0:01:56.3]} 27. Bd3
{[%clk 0:01:25.1]} 27... Rf8 {[%clk 0:01:51.4]} 28. h4 {[%clk 0:01:22.9]} 28...
Nd5+ {[%clk 0:01:49.2]} 29. Kg3 {[%clk 0:01:22.9]} 29... g6 {[%clk 0:01:48.1]}
30. h5 {[%clk 0:01:15]} 30... Nb4 {[%clk 0:01:39.7]} 31. Be4 {[%clk 0:00:54.6]}
31... gxh5 {[%clk 0:01:36.3]} 32. Rh1 {[%clk 0:00:48.4]} 32... Re8 {[%clk
0:01:30.4]} 33. Kf4 {[%clk 0:00:45.8]} 33... Re5 {[%clk 0:01:26.9]} 34. Bxh7
{[%clk 0:00:45.1]} 34... Nd5+ {[%clk 0:01:26.5]} 35. Kf3 {[%clk 0:00:44.5]}
35... Re3+ {[%clk 0:01:25.9]} 36. Kf2 {[%clk 0:00:44.8]} 36... Re5 {[%clk
0:01:25.9]} 37. Kf3 {[%clk 0:00:42.7]} 37... Nf6 {[%clk 0:01:24.6]} 38. Bg6
{[%clk 0:00:41.6]} 38... Rg5 {[%clk 0:01:24.1]} 39. Bd3 {[%clk 0:00:41.5]} 39...
a5 {[%clk 0:01:22.6]} 40. Kf4 {[%clk 0:00:41.7]} 40... Re5 {[%clk 0:01:08.4]}
41. Rg1 {[%clk 0:00:38.3]} 41... Nd5+ {[%clk 0:01:07.2]} 42. Kf3 {[%clk
0:00:37.5]} 42... Re3+ {[%clk 0:01:07.4]} 43. Kf2 {[%clk 0:00:37.7]} 43... Rh3
{[%clk 0:01:07.5]} 44. Rg6+ {[%clk 0:00:34.6]} 44... Kc5 {[%clk 0:01:06.6]} 45.
Rh6 {[%clk 0:00:35.1]} 45... h4 {[%clk 0:01:04.7]} 46. Kg2 {[%clk 0:00:34]}
46... Nf4+ {[%clk 0:01:04.8]} 47. Kf1 {[%clk 0:00:33]} 47... Nxd3 {[%clk
0:01:03.2]} 48. cxd3 {[%clk 0:00:33]} 48... Rxd3 {[%clk 0:01:03.4]} 49. Ke2
{[%clk 0:00:32.6]} 49... Rh3 {[%clk 0:01:02.6]} 50. Kd2 {[%clk 0:00:32]} 50...
Rh2+ {[%clk 0:01:02]} 51. Kc3 {[%clk 0:00:32.1]} 51... b5 {[%clk 0:01:02.1]} 52.
Rh5+ {[%clk 0:00:31.5]} 52... Kb6 {[%clk 0:01:02.2]} 53. a3 {[%clk 0:00:31.9]}
53... a4 {[%clk 0:01:01.8]} 54. b3 {[%clk 0:00:29.7]} 54... Ra2 {[%clk 0:01:00]}
55. bxa4 {[%clk 0:00:18.6]} 55... Rxa3+ {[%clk 0:00:59.6]} 56. Kb2 {[%clk
0:00:18.9]} 56... Rxa4 {[%clk 0:00:59.8]} 57. Rh6 {[%clk 0:00:17.8]} 57... Rg4
{[%clk 0:00:59.6]} 58. Kc3 {[%clk 0:00:17.2]} 58... Rg3+ {[%clk 0:00:59.6]} 59.
Kc2 {[%clk 0:00:17.5]} 59... h3 {[%clk 0:00:59.7]} 60. Rh8 {[%clk 0:00:17.8]}
60... Rg2+ {[%clk 0:00:59.2]} 61. Kc3 {[%clk 0:00:18.7]} 61... h2 {[%clk
0:00:59.5]} 62. Kb3 {[%clk 0:00:16.4]} 62... Kc5 {[%clk 0:00:59.5]} 63. Kc3
{[%clk 0:00:16.5]} 63... b4+ {[%clk 0:00:58.4]} 64. Kb3 {[%clk 0:00:17.4]} 64...
Kb5 {[%clk 0:00:58.7]} 65. Rh5+ {[%clk 0:00:14.2]} 65... c5 {[%clk 0:00:58.6]}
66. Rxc5+ {[%clk 0:00:14.2]} 66... Kxc5 {[%clk 0:00:58.4]} 67. Ka4 {[%clk
0:00:14]} 67... Rg3 {[%clk 0:00:57.9]} 68. Ka5 {[%clk 0:00:13.8]} 68... Ra3#
{[%clk 0:00:58.8]} 0-1